fUSD/lending_fUSD_20251220
["ID","MTS","AMOUNT","RATE_DAILY","PERIOD"]
[399239888,1766197854208,-260.33789622,0.00016999,2]
[399239889,1766197854218,-500.0,0.00016999,2]
[399239890,1766197854227,-500.0,0.00016999,2]
[399239891,1766197854238,-512.32849253,0.00016999,2]
[399239892,1766197854249,-500.0,0.00016999,2]
[399239893,1766197854260,-308.45911544,0.00016999,2]
[399239894,1766197854270,-500.0,0.00016999,2]
[399239895,1766197854281,-500.0,0.00016999,2]
[399239896,1766197854292,-500.0,0.00016999,2]
[399239897,1766197854303,-500.0,0.00016999,2]
[399239898,1766197854313,-500.0,0.00016999,2]
[399239899,1766197854323,-500.0,0.00016999,2]
[399239900,1766197854333,-500.0,0.00016999,2]
[399239901,1766197854345,-500.0,0.00016999,2]
[399239902,1766197854355,-500.0,0.00016999,2]
[399239903,1766197854364,-500.0,0.00016999,2]
[399239904,1766197854375,-592.36853989,0.00016999,2]
[399239905,1766197854385,-5396463.44091011,0.00017,2]
[399239906,1766197854705,-166.78997226,0.0001395,2]
[399239907,1766197854715,-273.75397734,0.000164,2]
[399239908,1766197854724,-338.7907264,0.00017,2]
[399239910,1766197888002,241.60551601,0.00011783,2]
[399239919,1766197919915,9758.40448399,0.00011784,2]
[399239920,1766197919941,10000.01,0.00011784,2]
[399239921,1766197919965,10000.01,0.00011784,2]
[399239922,1766197919990,10000.01,0.00011784,2]
[399239923,1766197920015,10000.01,0.00011784,2]
[399239924,1766197920040,10000.01,0.00011784,2]
[399239925,1766197920066,10000.01,0.00011784,2]
[399239926,1766197920092,10000.01,0.00011784,2]
[399239927,1766197920118,10000.01,0.00011784,2]
[399239928,1766197920145,10000.01,0.00011784,2]
[399239929,1766197945578,-9494.96,0.00011784,2]
[399239930,1766197945624,-10000.01,0.00011784,2]
[399239931,1766197945762,-10000.01,0.00011784,2]
[399239932,1766197954481,-10000.01,0.00011784,2]
[399239933,1766197954598,-10000.01,0.00011784,2]
[399239934,1766197954880,-10000.01,0.00011784,2]
[399239935,1766197954997,-10000.01,0.00011784,2]
[399239936,1766197955145,-10000.01,0.00011784,2]
[399239937,1766197955329,-10000.01,0.00011784,2]
[399239938,1766197970050,-10000.01,0.00011784,2]
[399239939,1766197970246,-10000.01,0.00011784,2]
[399239940,1766197970380,-10000.01,0.00011784,2]
[399239941,1766197970706,-10000.01,0.00011784,2]
[399239942,1766197970719,-10000.01,0.00011784,2]
[399239943,1766197970743,-10000.01,0.00011784,2]
[399239944,1766197970865,-10000.01,0.00011784,2]
[399239945,1766197971142,-10000.01,0.00011784,2]
[399239946,1766197971289,-10000.01,0.00011784,2]
[399239947,1766197987554,1249.611024,7.945e-05,2]
[399239948,1766197988679,-728.66651473,0.00011783,2]
[399239949,1766197988709,-300.0,0.00011783,2]
[399239950,1766197988737,-150.0,0.00011783,2]
[399239951,1766197988765,-1200.0,0.00011783,2]
[399239952,1766197988794,-250.0,0.00011784,2]
[399239953,1766197988822,-195.0,0.00011784,2]
[399239954,1766197988951,-4352.67697054,0.00011784,2]
[399239955,1766197988979,-10000.01,0.00011784,2]
[399239956,1766197988993,-10000.01,0.00011784,2]
[399239957,1766197989018,-10000.01,0.00011784,2]
[399239958,1766197989162,-10000.01,0.00011784,2]
[399239959,1766197989299,-10000.01,0.00011784,2]
[399239960,1766197989385,-10000.01,0.00011784,2]
[399239961,1766197989751,-10000.01,0.00011784,2]
[399239962,1766197989764,-10000.01,0.00011784,2]
[399239963,1766198002535,151.0,0.00023,120]
[399239964,1766198023379,-2149.120869,0.00011725,2]
[399239965,1766198023414,-5701.768262,0.00011784,2]
[399239966,1766198037452,-4906.91193128,0.00011784,2]
[399239967,1766198037497,-186.18613744,0.00011784,2]
[399239977,1766198399993,1600.0,0.00011187,2]
[399239983,1766198464297,1032.13,5.55e-05,2]
[399239984,1766198464504,1032.13,5.842e-05,2]
[399239985,1766198464712,1032.13,6.134e-05,2]
[399239986,1766198464922,1032.13,6.427e-05,2]
[399239987,1766198465144,1032.13,6.719e-05,2]
[399239988,1766198465356,1032.13,7.011e-05,2]
[399239989,1766198465546,1032.13,7.303e-05,2]
[399239990,1766198465739,1032.13,7.595e-05,2]
[399239991,1766198465961,142.97,7.887e-05,2]
[399239992,1766198465985,889.16,7.887e-05,2]
[399239993,1766198466343,1032.13,8.179e-05,2]
[399239994,1766198466401,1032.13,8.471e-05,2]
[399239995,1766198466781,1032.13,8.763e-05,2]
[399239996,1766198466841,1032.13,9.056e-05,2]
[399239997,1766198466974,1032.13,9.348e-05,2]
[399239998,1766198467179,1032.13,9.64e-05,2]
[399239999,1766198467373,1032.13,9.932e-05,2]
[399240000,1766198467572,1032.13,0.00010224,2]
[399240001,1766198467765,853.81,0.00010516,2]
[399240002,1766198467788,178.32,0.00010516,2]
[399240003,1766198467966,1032.13,0.00010808,2]
[399240004,1766198468197,1032.13,0.000111,2]
[399240010,1766198571301,7550.3948511,8.325e-05,2]
[399240011,1766198571338,316.03706124,8.325e-05,2]
[399240012,1766198571374,375.59391803,8.325e-05,2]
[399240019,1766198601770,1500.0,0.00011047,2]
[399240027,1766198658985,257.98416963,0.0001147,2]
[399240028,1766198659013,1619.43064781,0.0001147,2]
[399240042,1766198760578,8380.57935219,0.0001086,2]
[399240043,1766198760602,6743.36064781,0.0001086,2]
[399240112,1766198939570,3256.64935219,0.00011559,2]
[399240113,1766198939594,10000.01,0.00011559,2]
[399240114,1766198939618,10000.01,0.00011559,2]
[399240115,1766198939641,10000.01,0.00011559,2]
[399240126,1766198965829,183.850552,0.00011501,2]
[399240153,1766199016099,9816.159448,0.00010959,2]
[399240154,1766199016122,3604.76696541,0.00010959,2]
[399240155,1766199016142,4854.37798941,0.00010959,2]
[399240156,1766199016163,617.46559718,0.00010959,2]
[399240159,1766199020581,-300.0,0.00011523,2]
[399240160,1766199020610,-1200.0,0.00011523,2]
[399240161,1766199020640,-300.0,0.00011523,2]
[399240162,1766199020668,-250.0,0.00011524,2]
[399240164,1766199022999,474.00379681,0.00011474,2]
[399240169,1766199026756,-3657.43,0.00011524,2]
[399240170,1766199026866,-10000.01,0.00011524,2]
[399240179,1766199031569,-642.55591145,0.00011524,2]
[399240180,1766199031581,-4873.05885443,0.00011524,2]
[399240181,1766199031591,-244.0,0.00011524,2]
[399240182,1766199031600,-80840.86450352,0.00011559,2]
[399240183,1766199031728,-6114.02940933,0.00011559,2]
[399240188,1766199034080,10000.01,0.00011474,2]
[399240189,1766199034102,10000.01,0.00011474,2]
[399240190,1766199034124,2919.869021,0.00011474,2]
[399240192,1766199037661,-10111.1220421,0.00011559,2]
[399240193,1766199037673,-18601.19973194,0.00011559,2]
[399240194,1766199037713,-867.8039504,0.00011559,2]
[399240195,1766199037767,-284.94490973,0.00011559,2]
[399240196,1766199037821,-849923.35610079,0.00011559,2]
[399240197,1766199037830,-250.0,0.00011574,2]
[399240198,1766199037839,-2500.0,0.00011624,2]
[399240199,1766199037849,-194.14005123,0.00011641,2]
[399240200,1766199037858,-151.0,0.00011656,2]
[399240201,1766199037867,-1200.0,0.00011657,2]
[399240202,1766199037877,-150.0,0.00011658,2]
[399240203,1766199037887,-195.0,0.00011658,2]
[399240204,1766199037897,-2756.9178,0.00011659,2]
[399240205,1766199037907,-25305.2771,0.00011659,2]
[399240206,1766199037917,-500.0,0.00011675,2]
[399240207,1766199037927,-482.32252241,0.00011675,2]
[399240209,1766199037936,-203.66426853,0.00011675,2]
[399240211,1766199037947,-416.71899217,0.00011675,2]
[399240213,1766199037956,-500.0,0.00011675,2]
[399240214,1766199037966,-303.08407655,0.00011675,2]
[399240215,1766199037975,-500.0,0.00011675,2]
[399240216,1766199037986,-500.0,0.00011675,2]
[399240217,1766199037995,-500.0,0.00011675,2]
[399240218,1766199038006,-497.69665642,0.00011675,2]
[399240219,1766199038015,-500.0,0.00011675,2]
[399240220,1766199038024,-500.0,0.00011675,2]
[399240221,1766199038034,-500.0,0.00011675,2]
[399240222,1766199038043,-500.0,0.00011675,2]
[399240223,1766199038052,-500.0,0.00011675,2]
[399240224,1766199038061,-500.0,0.00011675,2]
[399240225,1766199038070,-500.0,0.00011675,2]
[399240226,1766199038080,-450.53952952,0.00011675,2]
[399240227,1766199038089,-500.0,0.00011675,2]
[399240228,1766199038098,-500.0,0.00011675,2]
[399240229,1766199038108,-500.0,0.00011675,2]
[399240230,1766199038117,-500.0,0.00011675,2]
[399240231,1766199038126,-500.0,0.00011675,2]
[399240232,1766199038136,-500.0,0.00011675,2]
[399240233,1766199038144,-500.0,0.00011675,2]
[399240234,1766199038153,-500.0,0.00011675,2]
[399240235,1766199038162,-500.0,0.00011675,2]
[399240236,1766199038171,-500.0,0.00011675,2]
[399240237,1766199038181,-500.0,0.00011675,2]
[399240238,1766199038190,-500.0,0.00011675,2]
[399240239,1766199038199,-500.0,0.00011675,2]
[399240240,1766199038208,-500.0,0.00011675,2]
[399240241,1766199038217,-500.0,0.00011675,2]
[399240242,1766199038226,-500.0,0.00011675,2]
[399240243,1766199038235,-500.0,0.00011675,2]
[399240244,1766199038244,-500.0,0.00011675,2]
[399240245,1766199038254,-500.0,0.00011675,2]
[399240246,1766199038263,-500.0,0.00011675,2]
[399240247,1766199038272,-500.0,0.00011675,2]
[399240248,1766199038281,-500.0,0.00011675,2]
[399240249,1766199038290,-500.0,0.00011675,2]
[399240250,1766199038299,-500.0,0.00011675,2]
[399240251,1766199038308,-500.0,0.00011675,2]
[399240252,1766199038318,-500.0,0.00011675,2]
[399240253,1766199038327,-500.0,0.00011675,2]
[399240254,1766199038336,-500.0,0.00011675,2]
[399240255,1766199038345,-500.0,0.00011675,2]
[399240256,1766199038355,-500.0,0.00011675,2]
[399240257,1766199038364,-500.0,0.00011675,2]
[399240258,1766199038374,-500.0,0.00011675,2]
[399240259,1766199038384,-500.0,0.00011675,2]
[399240260,1766199038393,-500.0,0.00011675,2]
[399240261,1766199038403,-500.0,0.00011675,2]
[399240262,1766199038415,-157.25852245,0.00011675,2]
[399240263,1766199038425,-500.0,0.00011675,2]
[399240264,1766199038434,-500.0,0.00011675,2]
[399240265,1766199038443,-500.0,0.00011675,2]
[399240266,1766199038454,-500.0,0.00011675,2]
[399240267,1766199038464,-500.0,0.00011675,2]
[399240268,1766199038473,-500.0,0.00011675,2]
[399240269,1766199038485,-500.0,0.00011675,2]
[399240270,1766199038495,-500.0,0.00011675,2]
[399240271,1766199038504,-500.0,0.00011675,2]
[399240272,1766199038513,-500.0,0.00011675,2]
[399240273,1766199038522,-500.0,0.00011675,2]
[399240274,1766199038531,-500.0,0.00011675,2]
[399240275,1766199038540,-500.0,0.00011675,2]
[399240276,1766199038554,-500.0,0.00011675,2]
[399240277,1766199038564,-500.0,0.00011675,2]
[399240278,1766199038573,-500.0,0.00011675,2]
[399240279,1766199038582,-500.0,0.00011675,2]
[399240280,1766199038591,-500.0,0.00011675,2]
[399240281,1766199038601,-317.66880638,0.00011675,2]
[399240282,1766199038610,-2747.15056816,0.00011675,2]
[399240283,1766199038619,-2747.15056816,0.00011675,2]
[399240284,1766199038628,-2747.15056816,0.00011675,2]
[399240285,1766199038637,-2747.15056816,0.00011675,2]
[399240286,1766199038647,-2747.15056816,0.00011675,2]
[399240287,1766199038656,-2747.15056816,0.00011675,2]
[399240288,1766199038665,-2747.15056816,0.00011675,2]
[399240289,1766199038674,-2747.15056816,0.00011675,2]
[399240290,1766199038684,-2747.15056816,0.00011675,2]
[399240291,1766199038693,-2747.15056816,0.00011675,2]
[399240292,1766199038702,-2747.15056816,0.00011675,2]
[399240293,1766199038712,-2747.15056816,0.00011675,2]
[399240294,1766199038721,-2747.15056816,0.00011675,2]
[399240295,1766199038730,-2747.15056816,0.00011675,2]
[399240296,1766199038740,-2747.15056816,0.00011675,2]
[399240297,1766199038749,-2747.15056816,0.00011675,2]
[399240298,1766199038758,-2747.15056816,0.00011675,2]
[399240299,1766199038767,-2747.15056816,0.00011675,2]
[399240300,1766199038777,-2747.15056816,0.00011675,2]
[399240301,1766199038787,-2747.15056816,0.00011675,2]
[399240302,1766199038796,-2747.15056816,0.00011675,2]
[399240303,1766199038805,-2747.15056816,0.00011675,2]
[399240304,1766199038815,-2747.15056816,0.00011675,2]
[399240305,1766199038824,-2747.15056816,0.00011675,2]
[399240306,1766199038833,-2747.15056816,0.00011675,2]
[399240307,1766199038842,-2747.15056816,0.00011675,2]
[399240308,1766199038851,-2747.15056816,0.00011675,2]
[399240309,1766199038860,-2747.15056816,0.00011675,2]
[399240310,1766199038869,-2747.15056816,0.00011675,2]
[399240311,1766199038878,-2747.15056816,0.00011675,2]
[399240312,1766199038888,-2747.15056816,0.00011675,2]
[399240313,1766199038897,-2747.15056816,0.00011675,2]
[399240314,1766199038906,-2747.15056816,0.00011675,2]
[399240315,1766199038916,-2747.15056816,0.00011675,2]
[399240316,1766199038925,-2747.15056816,0.00011675,2]
[399240317,1766199038934,-500.0,0.00011675,2]
[399240318,1766199038943,-500.0,0.00011675,2]
[399240319,1766199038953,-500.0,0.00011675,2]
[399240320,1766199038962,-500.0,0.00011675,2]
[399240321,1766199038971,-500.0,0.00011675,2]
[399240322,1766199038981,-500.0,0.00011675,2]
[399240323,1766199038991,-500.0,0.00011675,2]
[399240324,1766199038999,-500.0,0.00011675,2]
[399240325,1766199039009,-500.0,0.00011675,2]
[399240326,1766199039018,-500.0,0.00011675,2]
[399240327,1766199039027,-500.0,0.00011675,2]
[399240328,1766199039036,-500.0,0.00011675,2]
[399240329,1766199039045,-500.0,0.00011675,2]
[399240330,1766199039054,-500.0,0.00011675,2]
[399240331,1766199039064,-500.0,0.00011675,2]
[399240332,1766199039074,-500.0,0.00011675,2]
[399240333,1766199039083,-500.0,0.00011675,2]
[399240334,1766199039093,-500.0,0.00011675,2]
[399240335,1766199039102,-500.0,0.00011675,2]
[399240336,1766199039111,-500.0,0.00011675,2]
[399240337,1766199039120,-500.0,0.00011675,2]
[399240338,1766199039130,-273.39288583,0.00011675,2]
[399240339,1766199039139,-500.0,0.00011675,2]
[399240340,1766199039148,-2013.72,0.00011675,2]
[399240341,1766199039157,-500.0,0.00011676,2]
[399240342,1766199039167,-1136.86636625,0.0001171,2]
[399240343,1766199039176,-212.648,0.00011724,2]
[399240344,1766199039185,-4157.979,0.00011724,2]
[399240345,1766199039194,-1002.15082385,0.00011757,2]
[399240346,1766199039203,-151.0,0.00011777,2]
[399240347,1766199039212,-200.0,0.00011777,2]
[399240348,1766199039221,-151.0,0.00011777,2]
[399240349,1766199039230,-151.0,0.00011777,2]
[399240350,1766199039239,-151.0,0.00011777,2]
[399240351,1766199039248,-151.0,0.00011777,2]
[399240352,1766199039257,-151.0,0.00011777,2]
[399240353,1766199039266,-151.0,0.00011777,2]
[399240354,1766199039275,-151.0,0.00011777,2]
[399240355,1766199039284,-151.0,0.00011777,2]
[399240356,1766199039294,-151.0,0.00011777,2]
[399240357,1766199039303,-500.0,0.00011777,2]
[399240358,1766199039312,-151.0,0.00011777,2]
[399240359,1766199039321,-500.0,0.00011777,2]
[399240360,1766199039331,-151.0,0.00011777,2]
[399240361,1766199039342,-500.0,0.00011777,2]
[399240362,1766199039351,-151.0,0.00011777,2]
[399240363,1766199039360,-500.0,0.00011777,2]
[399240364,1766199039370,-500.0,0.00011777,2]
[399240365,1766199039380,-151.0,0.00011777,2]
[399240366,1766199039389,-500.0,0.00011777,2]
[399240367,1766199039398,-151.0,0.00011777,2]
[399240368,1766199039410,-500.0,0.00011777,2]
[399240369,1766199039420,-151.0,0.00011777,2]
[399240370,1766199039428,-500.0,0.00011777,2]
[399240371,1766199039438,-151.0,0.00011777,2]
[399240372,1766199039447,-500.0,0.00011777,2]
[399240373,1766199039456,-151.0,0.00011777,2]
[399240374,1766199039466,-151.0,0.00011777,2]
[399240375,1766199039475,-500.0,0.00011777,2]
[399240376,1766199039486,-500.0,0.00011777,2]
[399240377,1766199039496,-151.0,0.00011777,2]
[399240378,1766199039505,-500.0,0.00011777,2]
[399240379,1766199039514,-500.0,0.00011777,2]
[399240380,1766199039523,-500.0,0.00011777,2]
[399240381,1766199039532,-500.0,0.00011777,2]
[399240382,1766199039541,-200.0,0.00011777,2]
[399240383,1766199039550,-500.0,0.00011777,2]
[399240384,1766199039560,-500.0,0.00011777,2]
[399240385,1766199039569,-500.0,0.00011777,2]
[399240386,1766199039578,-200.0,0.00011777,2]
[399240387,1766199039588,-500.0,0.00011777,2]
[399240389,1766199039598,-500.0,0.00011777,2]
[399240390,1766199039606,-500.0,0.00011777,2]
[399240392,1766199039617,-500.0,0.00011777,2]
[399240393,1766199039626,-151.0,0.00011777,2]
[399240394,1766199039637,-151.0,0.00011777,2]
[399240395,1766199039656,-151.0,0.00011777,2]
[399240396,1766199039673,-500.0,0.00011777,2]
[399240397,1766199039682,-151.0,0.00011777,2]
[399240398,1766199039701,-151.0,0.00011777,2]
[399240399,1766199039712,-151.0,0.00011777,2]
[399240400,1766199039723,-151.0,0.00011777,2]
[399240401,1766199039732,-151.0,0.00011777,2]
[399240402,1766199039742,-151.0,0.00011777,2]
[399240403,1766199039751,-151.0,0.00011777,2]
[399240404,1766199039760,-151.0,0.00011777,2]
[399240405,1766199039770,-303.0,0.00011781,2]
[399240406,1766199039779,-441.2294,0.00011782,2]
[399240407,1766199039787,-150.0,0.0001181,2]
[399240408,1766199039796,-868.13960377,0.00011846,2]
[399240409,1766199039805,-15019.92,0.00011856,2]
[399240410,1766199039815,-229.0,0.00011882,2]
[399240411,1766199039825,-33486.8341,0.00011884,2]
[399240412,1766199039836,-1000.0,0.00011884,2]
[399240413,1766199039845,-848.0,0.00011894,2]
[399240414,1766199039854,-188.0,0.00011905,2]
[399240415,1766199039863,-244.0,0.00011943,2]
[399240416,1766199039874,-2013.72,0.00011949,2]
[399240417,1766199039883,-500.0,0.0001195,2]
[399240418,1766199039893,-654.0,0.00011956,2]
[399240419,1766199039902,-869.0,0.00011972,2]
[399240420,1766199039912,-259.0,0.0001202,2]
[399240421,1766199039921,-415.0,0.00012022,2]
[399240422,1766199039931,-609.0,0.00012042,2]
[399240423,1766199039940,-534.94,0.00012055,2]
[399240424,1766199039949,-1711.0,0.00012066,2]
[399240425,1766199039958,-1338.82299307,0.00012079,2]
[399240426,1766199039969,-19173.05476583,0.00012121,2]
[399240427,1766199039979,-441.0,0.00012142,2]
[399240428,1766199039990,-1131.0,0.00012185,2]
[399240429,1766199039999,-2013.72,0.00012223,2]
[399240430,1766199040010,-500.0,0.00012224,2]
[399240431,1766199040020,-264.0,0.00012289,2]
[399240432,1766199040030,-153.0,0.00012305,2]
[399240433,1766199040041,-200.0,0.00012325,2]
[399240434,1766199040050,-200.0,0.00012325,2]
[399240435,1766199040059,-500.0,0.00012325,2]
[399240436,1766199040068,-166.78997226,0.00012337,2]
[399240437,1766199040077,-474.00379679,0.00012347,2]
[399240438,1766199040086,-782.83733733,0.00012363,2]
[399240439,1766199040095,-1136.86636622,0.00012451,2]
[399240440,1766199040105,-2013.72,0.00012497,2]
[399240441,1766199040116,-500.0,0.00012498,2]
[399240442,1766199040125,-1600.0,0.00012586,2]
[399240443,1766199040135,-420.0,0.00012656,2]
[399240444,1766199040147,-420.0,0.00012656,2]
[399240445,1766199040157,-1680.0,0.00012675,2]
[399240446,1766199040167,-250.0,0.00012675,2]
[399240447,1766199040179,-195.0,0.00012675,2]
[399240448,1766199040188,-195.0,0.00012715,2]
[399240449,1766199040197,-19173.05476583,0.00012719,2]
[399240450,1766199040206,-255.0,0.0001273,2]
[399240451,1766199040216,-2013.72,0.00012771,2]
[399240452,1766199040226,-500.0,0.00012772,2]
[399240453,1766199040236,-193.0,0.00012787,2]
[399240454,1766199040245,-1366.0,0.00012801,2]
[399240455,1766199040255,-3057.14,0.00012814,2]
[399240456,1766199040264,-195.0,0.00012824,2]
[399240457,1766199040273,-195.0,0.00012824,2]
[399240458,1766199040282,-200.0,0.00012873,2]
[399240459,1766199040291,-200.0,0.00012873,2]
[399240460,1766199040301,-500.0,0.00012873,2]
[399240461,1766199040310,-2013.72,0.00013045,2]
[399240462,1766199040320,-500.0,0.00013046,2]
[399240463,1766199040329,-151.0,0.00013109,2]
[399240464,1766199040339,-500.0,0.00013151,2]
[399240465,1766199040348,-500.0,0.00013151,2]
[399240467,1766199040358,-150.97899754,0.00013151,2]
[399240468,1766199040367,-150.0,0.00013151,2]
[399240469,1766199040376,-150.0,0.00013151,2]
[399240470,1766199040385,-500.0,0.00013151,2]
[399240471,1766199040395,-150.0,0.00013151,2]
[399240472,1766199040404,-500.0,0.00013151,2]
[399240473,1766199040415,-150.0,0.00013151,2]
[399240474,1766199040425,-150.0,0.00013151,2]
[399240475,1766199040434,-150.0,0.00013151,2]
[399240476,1766199040444,-150.0,0.00013151,2]
[399240477,1766199040454,-150.0,0.00013151,2]
[399240478,1766199040463,-500.0,0.00013151,2]
[399240479,1766199040473,-150.0,0.00013151,2]
[399240480,1766199040483,-500.0,0.00013151,2]
[399240481,1766199040493,-500.0,0.00013151,2]
[399240483,1766199040502,-150.0,0.00013151,2]
[399240484,1766199040511,-150.0,0.00013151,2]
[399240485,1766199040521,-150.0,0.00013151,2]
[399240486,1766199040532,-724.0,0.00013151,2]
[399240487,1766199040541,-500.0,0.00013151,2]
[399240488,1766199040550,-500.0,0.00013151,2]
[399240489,1766199040559,-500.0,0.00013151,2]
[399240490,1766199040568,-497.0,0.00013151,2]
[399240491,1766199040577,-151.04245761,0.00013151,2]
[399240492,1766199040586,-470.0,0.00013151,2]
[399240493,1766199040595,-152.49962646,0.00013151,2]
[399240494,1766199040604,-500.0,0.00013151,2]
[399240495,1766199040613,-150.0,0.00013151,2]
[399240496,1766199040622,-500.0,0.00013151,2]
[399240497,1766199040631,-150.0,0.00013151,2]
[399240498,1766199040640,-500.0,0.00013151,2]
[399240499,1766199040649,-500.0,0.00013151,2]
[399240500,1766199040659,-604.0,0.00013151,2]
[399240501,1766199040667,-500.0,0.00013151,2]
[399240502,1766199040676,-150.0,0.00013151,2]
[399240503,1766199040685,-594.0,0.00013151,2]
[399240504,1766199040695,-500.0,0.00013151,2]
[399240505,1766199040704,-500.0,0.00013151,2]
[399240506,1766199040926,-500.0,0.00013151,2]
[399240507,1766199040935,-1157.0,0.00013151,2]
[399240508,1766199040944,-150.0,0.00013151,2]
[399240509,1766199040953,-554.0,0.00013151,2]
[399240510,1766199040963,-150.0,0.00013151,2]
[399240511,1766199040971,-500.0,0.00013151,2]
[399240512,1766199040980,-1177.0,0.00013151,2]
[399240513,1766199040989,-151.0,0.00013154,2]
[399240514,1766199040998,-151.0,0.00013171,2]
[399240515,1766199041007,-1136.86636622,0.00013193,2]
[399240516,1766199041016,-474.00379679,0.0001322,2]
[399240517,1766199041025,-500.0,0.00013288,2]
[399240518,1766199041034,-500.0,0.00013288,2]
[399240519,1766199041043,-150.0,0.00013288,2]
[399240520,1766199041052,-150.0,0.00013288,2]
[399240521,1766199041061,-500.0,0.00013288,2]
[399240522,1766199041070,-150.0,0.00013288,2]
[399240523,1766199041079,-500.0,0.00013288,2]
[399240524,1766199041088,-150.0,0.00013288,2]
[399240525,1766199041099,-150.0,0.00013288,2]
[399240526,1766199041108,-150.0,0.00013288,2]
[399240527,1766199041117,-162.71079327,0.00013288,2]
[399240528,1766199041126,-150.29349305,0.00013288,2]
[399240529,1766199041135,-500.0,0.00013288,2]
[399240530,1766199041144,-150.0,0.00013288,2]
[399240531,1766199041153,-500.0,0.00013288,2]
[399240532,1766199041162,-500.0,0.00013288,2]
[399240533,1766199041171,-201.2765323,0.00013288,2]
[399240534,1766199041180,-150.0,0.00013288,2]
[399240535,1766199041189,-151.71461843,0.00013288,2]
[399240536,1766199041198,-724.0,0.00013288,2]
[399240537,1766199041207,-500.0,0.00013288,2]
[399240538,1766199041216,-500.0,0.00013288,2]
[399240539,1766199041225,-500.0,0.00013288,2]
[399240540,1766199041234,-497.0,0.00013288,2]
[399240541,1766199041244,-470.0,0.00013288,2]
[399240542,1766199041253,-500.0,0.00013288,2]
[399240543,1766199041262,-150.0,0.00013288,2]
[399240544,1766199041271,-500.0,0.00013288,2]
[399240545,1766199041280,-150.0,0.00013288,2]
[399240546,1766199041289,-500.0,0.00013288,2]
[399240547,1766199041298,-500.0,0.00013288,2]
[399240548,1766199041307,-604.0,0.00013288,2]
[399240549,1766199041316,-500.0,0.00013288,2]
[399240550,1766199041325,-150.0,0.00013288,2]
[399240551,1766199041334,-594.0,0.00013288,2]
[399240552,1766199041343,-500.0,0.00013288,2]
[399240553,1766199041353,-500.0,0.00013288,2]
[399240554,1766199041363,-500.0,0.00013288,2]
[399240555,1766199041371,-1157.0,0.00013288,2]
[399240556,1766199041381,-554.0,0.00013288,2]
[399240557,1766199041390,-500.0,0.00013288,2]
[399240558,1766199041399,-1177.0,0.00013288,2]
[399240559,1766199041412,-19173.05476583,0.00013316,2]
[399240560,1766199041421,-2013.72,0.00013319,2]
[399240561,1766199041431,-503.47867429,0.0001332,2]
[399240562,1766199041440,-200.0,0.00013421,2]
[399240563,1766199041450,-200.0,0.00013421,2]
[399240564,1766199041460,-500.0,0.00013421,2]
[399240565,1766199041469,-501.70181775,0.00013425,2]
[399240566,1766199041478,-500.0,0.00013425,2]
[399240567,1766199041489,-150.0,0.00013425,2]
[399240568,1766199041498,-231.95831861,0.00013425,2]
[399240569,1766199041507,-500.0,0.00013425,2]
[399240570,1766199041516,-150.0,0.00013425,2]
[399240571,1766199041526,-500.0,0.00013425,2]
[399240572,1766199041535,-214.56501288,0.00013425,2]